lending/lending_fUSD_20240417
["ID","MTS","AMOUNT","RATE_DAILY","PERIOD"]
[322839267,1713383447726,-153.10486378,0.00020787,2]
[322839268,1713383447736,-150.0,0.00020788,2]
[322839269,1713383447745,-150.0,0.00020788,2]
[322839270,1713383447755,-1500.0,0.00020788,2]
[322839271,1713383447764,-6933.09121626,0.0002079,2]
[322839272,1713383447775,-3044.10673326,0.0002079,2]
[322839273,1713383447787,-153.10486378,0.00020793,2]
[322839274,1713383447796,-150.0,0.00020793,2]
[322839275,1713383447805,-150.0,0.00020793,2]
[322839276,1713383447814,-1091.08915344,0.00020797,2]
[322839277,1713383447972,-335.25000385,0.00020797,2]
[322839278,1713383448001,-352.7727058,0.00020797,2]
[322839279,1713383448013,-1742.22450799,0.00020797,2]
[322839280,1713383674606,2289.11504701,0.00015,2]
[322839317,1713384631596,-318.18050317,0.0001579,2]
[322839319,1713384631694,-2039.93805299,0.0001579,2]
[322839320,1713384631704,-1059.92059232,0.00015791,2]
[322839321,1713384631714,-526.42706352,0.00015793,2]
[322839322,1713384631727,-523.57702798,0.00015793,2]
[322839323,1713384631737,-547.92,0.00015809,2]
[322839324,1713384631747,-300.0,0.00016796,2]
[322839325,1713384631758,-23139.05867772,0.00016797,2]
[322839326,1713384631767,-1000.0,0.000168,2]
[322839327,1713384631777,-20931.1881,0.000168,2]
[322839328,1713384631786,-500.0,0.000168,2]
[322839329,1713384631796,-3336.1821,0.000168,2]
[322839330,1713384631806,-1000.0,0.00017392,2]
[322839331,1713384631817,-23900.0,0.00017608,2]
[322839332,1713384631827,-150.99,0.00017608,2]
[322839333,1713384631837,-3052.61,0.00017611,2]
[322839334,1713384631846,-250.0,0.00017753,2]
[322839335,1713384631856,-926.24,0.0001779,2]
[322839336,1713384631866,-656.94,0.0001781,2]
[322839337,1713384631875,-204.59,0.00018049,2]
[322839338,1713384631886,-184.4,0.00018069,2]
[322839339,1713384631896,-547.92,0.00018073,2]
[322839340,1713384631905,-681.9782,0.000182,2]
[322839341,1713384631915,-156.08774004,0.0001829,2]
[322839342,1713384631925,-156.08774004,0.0001829,2]
[322839343,1713384631934,-156.08774004,0.0001829,2]
[322839344,1713384631944,-156.08774004,0.0001829,2]
[322839345,1713384631954,-156.08774004,0.0001829,2]
[322839346,1713384631964,-156.08774004,0.0001829,2]
[322839347,1713384631975,-156.08774004,0.0001829,2]
[322839348,1713384631985,-156.08774004,0.0001829,2]
[322839349,1713384631995,-156.08774004,0.0001829,2]
[322839350,1713384632004,-156.08774004,0.0001829,2]
[322839351,1713384632014,-2636.56865396,0.00018298,2]
[322839352,1713384632024,-85528.24792541,0.000183,3]
[322839356,1713384632275,-240.87,0.00018398,2]
[322839357,1713384632292,-3859.51532959,0.0001842,2]
[322839358,1713384632304,-156.08774004,0.00018577,2]
[322839359,1713384632314,-2636.56865396,0.00018587,2]
[322839360,1713384632324,-499.99,0.00018649,2]
[322839361,1713384632333,-156.08774004,0.0001869,2]
[322839362,1713384632342,-3859.51532954,0.00018696,2]
[322839363,1713384632351,-3372.0,0.000187,2]
[322839364,1713384632362,-1202.0135,0.000188,2]
[322839365,1713384632372,-2636.56865396,0.00018876,2]
[322839366,1713384632382,-156.08774004,0.0001889,2]
[322839367,1713384632392,-156.08774004,0.0001889,2]
[322839368,1713384632402,-156.08774004,0.0001889,2]
[322839369,1713384632412,-156.08774004,0.0001889,2]
[322839370,1713384632423,-156.08774004,0.0001889,2]
[322839371,1713384632432,-35777.21726603,0.000189,2]
[322839372,1713384632443,-200.0,0.00018902,2]
[322839373,1713384632453,-3859.51532954,0.00018971,2]
[322839374,1713384632463,-156.08774004,0.0001899,2]
[322839375,1713384632474,-1550.0,0.00019,3]
[322839376,1713384632485,-250.6,0.00019133,2]
[322839377,1713384632495,-2636.56865396,0.00019165,2]
[322839378,1713384632505,-3859.51532954,0.00019247,2]
[322839379,1713384632515,-156.08774004,0.00019445,2]
[322839380,1713384632525,-162.5,0.00019452,2]
[322839381,1713384632534,-2636.56865396,0.00019454,2]
[322839382,1713384632546,-3859.51532954,0.00019522,2]
[322839383,1713384632556,-161.65,0.00019682,2]
[322839384,1713384632566,-156.08774004,0.00019694,2]
[322839385,1713384632577,-317.42459683,0.00019698,2]
[322839386,1713384632586,-170.37774006,0.000197,2]
[322839387,1713384632597,-69659.83247912,0.00019704,2]
[322839388,1713384632664,-2974.92869753,0.00019704,2]
[322839389,1713384632679,-784.5,0.00019704,2]
[322839390,1713384632870,-13104.92535399,0.00019704,2]
[322839391,1713384632879,-1426.38,0.00019704,2]
[322839392,1713384632889,-2292.0,0.00019704,2]
[322839393,1713384632898,-996.311,0.00019704,2]
[322839394,1713384632907,-461.0,0.00019704,2]
[322839395,1713384632916,-1253.0,0.00019704,2]
[322839396,1713384632926,-541.0,0.00019704,2]
[322839397,1713384632935,-1228.0,0.00019704,2]
[322839398,1713384632945,-549.44777975,0.00019704,2]
[322839405,1713384637541,-262.08510963,0.00015789,2]
[322839406,1713384637551,-123.29659695,0.00019704,2]
[322839407,1713384637562,-410.07831024,0.00019704,2]
[322839412,1713384637601,-866.17731306,0.00019704,2]
[322839414,1713384637611,-758.03138592,0.00019704,2]
[322839415,1713384637705,-48.96861408,0.00019704,2]
[322839416,1713384637714,-609.0,0.00019704,2]
[322839417,1713384637728,-436.0,0.00019704,2]
[322839418,1713384637737,-131.61138592,0.00019704,2]
[322839419,1713384637749,-148.38861408,0.00019704,2]
[322839420,1713384637758,-150.0,0.00019704,2]
[322839421,1713384637768,-2442.0,0.00019704,2]
[322839422,1713384637777,-1473.0,0.00019704,2]
[322839423,1713384637787,-399.0,0.00019704,2]
[322839424,1713384637796,-3079.0,0.00019704,2]
[322839425,1713384637807,-214.0,0.00019704,2]
[322839426,1713384637817,-1639.0,0.00019704,2]
[322839427,1713384637826,-355.0,0.00019704,2]
[322839428,1713384637836,-1140.0,0.00019704,2]
[322839429,1713384637846,-443.0,0.00019704,2]
[322839430,1713384637855,-5885.0,0.00019704,2]
[322839431,1713384637865,-2410.69819445,0.00019704,2]
[322839453,1713384639564,-373.832081,0.00019704,2]
[322839454,1713384639576,-1133.07,0.00019704,2]
[322839455,1713384639588,-774.1338722,0.00019704,2]
[322839456,1713384639630,-953.56826015,0.00019704,2]
[322839457,1713384639641,-75.6975922,0.00019704,2]
[322839458,1713384639650,-1503.01939677,0.00019704,2]
[322839459,1713384639677,-1889.5215,0.00019704,2]
[322839460,1713384639733,-271.05795794,0.00019704,2]
[322839461,1713384639791,-3969.32580454,0.00019704,2]
[322839462,1713384639802,-382.37,0.00019704,2]
[322839463,1713384639814,-8739.86443639,0.00019704,2]
[322839464,1713384639825,-20897.84090436,0.00019704,2]
[322839465,1713384639835,-1737.0,0.00019704,2]
[322839466,1713384639844,-1054.0,0.00019704,2]
[322839467,1713384639854,-2636.56865396,0.00019744,2]
[322839468,1713384639863,-3382.50763203,0.00019778,2]
[322839469,1713384639873,-151.63,0.00019788,2]
[322839470,1713384639882,-151.63,0.00019788,2]
[322839471,1713384639891,-151.63,0.0001979,2]
[322839472,1713384639900,-3692.50343558,0.00019797,2]
[322839473,1713384639909,-3859.51532954,0.00019798,2]
[322839474,1713384639919,-346.53216328,0.00019798,2]
[322839475,1713384639928,-573704.35129969,0.00019798,2]
[322839476,1713384639939,-148404.93150368,0.00019798,2]
[322839509,1713384642811,-806.53278552,0.00019798,2]
[322839510,1713384642986,-6130.5,0.00019798,2]
[322839527,1713384643500,533.2272113,0.00023,24]
[322839533,1713384645752,-2358.11855616,0.00019797,2]
[322839534,1713384645762,-609914.19592588,0.00019798,2]
[322839535,1713384645773,-51418.76436571,0.00019798,2]
[322839536,1713384645785,-40613.00305207,0.00019798,2]
[322839537,1713384645817,-429.60683,0.00019798,2]
[322839538,1713384645843,-2314.76,0.00019798,2]
[322839539,1713384645885,-2899.83541952,0.00019798,2]
[322839540,1713384645897,-2041.62715847,0.00019798,2]
[322839541,1713384645908,-333.47795786,0.00019798,2]
[322839542,1713384645948,-12647.38982203,0.00019798,2]
[322839545,1713385691452,300.0,0.000166,6]
[322839546,1713385693635,600.0,0.000167,6]
[322839547,1713385695852,1000.0,0.000168,6]
[322839548,1713385697960,1300.0,0.000169,6]
[322839549,1713385829954,527.23,0.0001429,2]
[322839557,1713385831656,-155.0,0.0001589,2]
[322839558,1713385831665,-1059.92059232,0.0001589,2]
[322839559,1713385831674,-523.57702798,0.0001589,2]
[322839560,1713385831682,-161.38469832,0.0001589,2]
[322839561,1713385831691,-3956.62524458,0.0001589,2]
[322839562,1713385831702,-3053.99770799,0.0001589,2]
[322839566,1713385831733,-708.80297248,0.0001589,2]
[322839568,1713385831744,-1476.94465062,0.0001589,2]
[322839571,1713385831756,-1933.2137905,0.0001589,2]
[322839572,1713385831800,-8295.49308381,0.0001589,2]
[322839573,1713385831810,-537.58418051,0.0001589,2]
[322839574,1713385831819,-155.0,0.00015891,2]
[322839575,1713385831828,-262.08510963,0.00015891,2]
[322839576,1713385831838,-200.4337694,0.00015891,2]
[322839577,1713385831847,-408.64257966,0.00015894,2]
[322839578,1713385831856,-189.10394884,0.00015899,2]
[322839579,1713385831866,-3718.18327738,0.00015997,2]
[322839580,1713385831875,-150.0,0.00016207,2]
[322839581,1713385831884,-200.0,0.00016208,2]
[322839582,1713385831893,-527.23,0.00016554,2]
[322839583,1713385831902,-499.99,0.00016809,2]
[322839584,1713385831912,-101.81557764,0.00017,3]
[322839585,1713385831926,-1448.18442236,0.00017,3]
[322839586,1713385831935,-214.81328887,0.00017201,2]
[322839587,1713385831944,-18637.64236766,0.00017201,2]
[322839595,1713385832082,-1362.34763234,0.00017201,2]
[322839596,1713385832092,-266.14996478,0.00017203,2]
[322839597,1713385832102,-1332.16264872,0.0001727,2]
[322839598,1713385832112,-388.06033617,0.00017277,2]
[322839599,1713385832160,-256.90979463,0.00017277,2]
[322839600,1713385832173,-293.43812873,0.00017277,2]
[322839619,1713385837643,-1546.96706778,0.00017277,2]
[322839620,1713385837653,-6489.126,0.00017282,2]
[322839622,1713385837663,-2462.51,0.00017282,2]
[322839624,1713385837672,-2346.95320851,0.00017295,2]
[322839626,1713385837682,-1153.25536013,0.00017295,2]
[322839627,1713385837691,-151.63,0.0001736,2]
[322839628,1713385837701,-151.63,0.00017367,2]
[322839629,1713385837711,-440931.01915832,0.00017369,2]
[322839630,1713385837721,-567.0,0.0001737,2]
[322839631,1713385837729,-148026.0,0.0001737,2]
[322839632,1713385837739,-51504.49,0.0001737,2]
[322839633,1713385837749,-208.96057669,0.00017375,2]
[322839634,1713385837759,-245.14603926,0.00017376,2]
[322839635,1713385837768,-277.22573062,0.00017377,2]
[322839636,1713385837778,-489.50678627,0.00017377,2]
[322839637,1713385837787,-922616.15197836,0.00017377,2]
[322839638,1713385837835,-737389.47636725,0.00017377,2]
[322839639,1713385837845,-375.85470948,0.00017377,2]
[322839640,1713385837855,-205.92323207,0.00017377,2]
[322839641,1713385837864,-1240.66300341,0.00017377,2]
[322839642,1713385837873,-2047.62177569,0.00017377,2]
[322839643,1713385837882,-236.21588443,0.00017377,2]
[322839644,1713385837891,-1005.993,0.00017377,2]
[322839645,1713385837900,-11277.80946076,0.00017378,2]
[322839646,1713385837910,-7728.98965993,0.00017378,2]
[322839647,1713385837919,-135015.79869888,0.00017379,2]
[322839648,1713385837930,-588.70309362,0.00017379,2]
[322839649,1713385837941,-1204.738,0.00017379,2]
[322839650,1713385837952,-2301.2902,0.00017379,2]
[322839651,1713385837964,-3572.60952,0.00017379,2]
[322839652,1713385837975,-657.76259654,0.00017379,2]
[322839653,1713385838002,-4219.40957056,0.00017379,2]
[322839654,1713385838028,-1113.46114593,0.00017379,2]
[322839660,1713385838083,-576.5831685,0.00017379,2]
[322839662,1713385838094,-443.83778674,0.00017379,2]
[322839675,1713385839741,-1227.79854319,0.00017379,2]
[322839676,1713385839816,-338.79383807,0.00017379,2]
[322839677,1713385839827,-97216.7335029,0.00017379,2]
[322839678,1713385839928,-293.7,0.00017379,2]
[322839692,1713385842815,-614.49654,0.00017379,2]
[322839693,1713385842987,-3775.65359693,0.00017379,2]
[322839694,1713385843027,-9533.94310162,0.00017379,2]
[322839695,1713385843039,-6140.4,0.00017379,2]
[322839696,1713385843202,-410076.41371405,0.00017379,2]
[322839698,1713385843211,-210.29933202,0.00017506,2]
[322839700,1713385843221,-2485.37532731,0.00017606,2]
[322839702,1713385843230,-1332.16264867,0.00017789,2]
[322839704,1713385843239,-2658.11119483,0.0001788,2]
[322839706,1713385843248,-2658.11119479,0.0001788,2]
[322839707,1713385843258,-4417.23194186,0.0001788,2]
[322839709,1713385843267,-4417.23194179,0.0001788,2]
[322839711,1713385843277,-2485.37532731,0.00017936,2]
[322839713,1713385843286,-2658.11119479,0.00018077,2]
[322839715,1713385843296,-4417.23194179,0.00018077,2]
[322839717,1713385843305,-539.0,0.00018083,2]
[322839719,1713385843314,-2485.37532731,0.00018265,2]
[322839721,1713385843324,-1332.16264867,0.00018307,2]
[322839723,1713385843333,-802.58360074,0.00018351,2]
[322839724,1713385843343,-2658.11119479,0.0001848,2]
[322839725,1713385843352,-4417.23194179,0.0001848,2]
[322839726,1713385843361,-1000.0,0.00018487,2]
[322839727,1713385843371,-2485.37532731,0.00018594,2]
[322839729,1713385843379,-539.0,0.00018621,2]
[322839730,1713385843389,-259.0,0.00018785,2]
[322839732,1713385843399,-527.23,0.00018818,2]
[322839733,1713385843410,-151.63,0.0001882,2]
[322839734,1713385843419,-1332.16264867,0.00018826,2]
[322839735,1713385843428,-162.5,0.00018831,2]
[322839736,1713385843438,-161.65,0.00018831,2]
[322839737,1713385843447,-250.0,0.00018831,2]
[322839738,1713385843457,-13358.07,0.00018831,2]
[322839739,1713385843466,-23900.0,0.00018831,2]
[322839740,1713385843477,-635.03,0.00018831,2]
[322839741,1713385843487,-741.0,0.00018831,2]
[322839742,1713385843496,-574.0,0.00018877,2]
[322839743,1713385843505,-2658.11119479,0.00018883,2]
[322839744,1713385843514,-4417.23194179,0.00018883,2]
[322839745,1713385843523,-171.28652052,0.000189,2]
[322839746,1713385843532,-2485.37532731,0.00018924,2]
[322839747,1713385843541,-1600.0,0.00019,3]
[322839748,1713385843550,-299.07414017,0.00019,2]
[322839749,1713385843789,-364.15282448,0.00019,2]
[322839750,1713385843807,-2346.95320851,0.00019098,2]
[322839751,1713385843818,-1153.25536011,0.00019098,2]
[322839752,1713385843829,-500.0,0.00019178,2]
[322839753,1713385843838,-500.0,0.00019178,2]
[322839754,1713385843849,-500.0,0.00019178,2]
[322839755,1713385843859,-500.0,0.00019178,2]
[322839756,1713385843868,-500.0,0.00019178,2]
[322839757,1713385843878,-551.33144131,0.00019178,2]
[322839758,1713385843889,-500.0,0.00019178,2]
[322839759,1713385843899,-563.9533307,0.00019178,2]
[322839760,1713385843908,-316.53744823,0.00019178,2]
[322839761,1713385843918,-191.52240016,0.00019178,2]
[322839762,1713385843927,-791.85,0.00019178,2]
[322839763,1713385843936,-1500.0,0.00019178,2]
[322839764,1713385843946,-3869.82317102,0.000192,2]
[322839765,1713385843955,-3382.50763203,0.00019246,2]
[322839766,1713385843964,-2485.37532731,0.00019253,2]
[322839767,1713385843975,-1407.3940953,0.00019254,2]
[322839768,1713385843984,-2658.11119479,0.00019287,2]
[322839769,1713385843995,-4417.23194179,0.00019287,2]
[322839770,1713385844005,-1332.16264867,0.00019344,2]
[322839771,1713385844014,-195.01,0.00019493,2]
[322839772,1713385844023,-150.0,0.00019545,2]
[322839773,1713385844033,-2485.37532731,0.00019583,2]
[322839774,1713385844043,-1949.0,0.00019584,2]
[322839775,1713385844052,-807.0,0.00019584,2]
[322839776,1713385844061,-280.0,0.00019584,2]
[322839777,1713385844071,-436.0,0.00019584,2]
[322839778,1713385844080,-609.0,0.00019584,2]
[322839779,1713385844090,-150.0,0.00019584,2]
[322839780,1713385844099,-399.0,0.00019584,2]
[322839781,1713385844108,-1260.332,0.00019584,2]
[322839782,1713385844117,-2068.659,0.00019584,2]
[322839783,1713385844126,-1543.734,0.00019584,2]
[322839784,1713385844135,-214.0,0.00019584,2]
[322839785,1713385844144,-1410.486,0.00019584,2]
[322839786,1713385844153,-355.0,0.00019584,2]
[322839787,1713385844162,-443.0,0.00019584,2]
[322839788,1713385844171,-1140.0,0.00019584,2]
[322839789,1713385844181,-1426.38,0.00019584,2]
[322839790,1713385844190,-996.311,0.00019584,2]
[322839791,1713385844199,-2292.0,0.00019584,2]
[322839792,1713385844208,-580.698,0.00019584,2]
[322839793,1713385844216,-1254.0,0.00019584,2]
[322839794,1713385844227,-284.938,0.00019584,2]
[322839795,1713385844236,-541.0,0.00019584,2]
[322839796,1713385844246,-1228.0,0.00019584,2]
[322839797,1713385844254,-1407.3940953,0.0001965,2]
[322839798,1713385844264,-3382.50763203,0.00019681,2]
[322839799,1713385844273,-2658.11119479,0.0001969,2]
[322839800,1713385844282,-4417.23194179,0.0001969,2]
[322839801,1713385844291,-575.0,0.00019698,2]
[322839802,1713385844300,-213.0,0.00019698,2]
[322839803,1713385844309,-27264.59434547,0.00019699,4]
[322839804,1713385844318,-4716.5472,0.000197,2]
[322839805,1713385844327,-100000.0,0.000197,2]
[322839806,1713385844336,-1000.0,0.00019726,2]
[322839807,1713385844346,-517.28,0.00019753,2]
[322839808,1713385844356,-150.0,0.00019753,2]
[322839809,1713385844365,-150.0,0.00019753,2]
[322839810,1713385844374,-347.16,0.00019753,2]
[322839811,1713385844383,-150.0,0.00019753,2]
[322839812,1713385844396,-150.0,0.00019753,2]
[322839813,1713385844406,-300.0,0.00019753,2]
[322839814,1713385844415,-865.87969426,0.00019798,2]
[322839815,1713385844424,-500.0,0.00019798,2]
[322839816,1713385844433,-1548.48437,0.00019798,2]
[322839817,1713385844442,-151.0,0.000198,2]
[322839818,1713385844451,-151.0,0.000198,2]
[322839819,1713385844460,-152.802136,0.000198,2]
[322839820,1713385844470,-151.0,0.000198,2]
[322839821,1713385844480,-151.0,0.000198,2]
[322839822,1713385844489,-292.800009,0.000198,2]
[322839823,1713385844498,-151.0,0.000198,2]
[322839824,1713385844507,-151.190873,0.000198,2]
[322839825,1713385844517,-151.0,0.000198,2]
[322839826,1713385844526,-151.0,0.000198,2]
[322839827,1713385844536,-151.0,0.000198,2]
[322839828,1713385844545,-275.137736,0.000198,2]
[322839829,1713385844554,-151.0,0.000198,2]
[322839830,1713385844564,-151.0,0.000198,2]
[322839831,1713385844573,-151.0,0.000198,2]
[322839832,1713385844583,-151.0,0.000198,2]
[322839833,1713385844592,-313.661702,0.000198,2]
[322839834,1713385844601,-313.661702,0.000198,2]
[322839835,1713385844611,-151.0,0.000198,2]
[322839836,1713385844621,-151.0,0.000198,2]
[322839837,1713385844631,-151.0,0.000198,2]
[322839838,1713385844640,-151.0,0.000198,2]
[322839839,1713385844649,-151.0,0.000198,2]
[322839840,1713385844659,-154.558488,0.000198,2]
[322839841,1713385844668,-151.0,0.000198,2]
[322839842,1713385844678,-151.0,0.000198,2]
[322839843,1713385844688,-350.641542,0.000198,2]
[322839844,1713385844698,-350.641542,0.000198,2]
[322839845,1713385844707,-151.0,0.000198,2]
[322839846,1713385844717,-151.0,0.000198,2]
[322839847,1713385844729,-151.0,0.000198,2]
[322839848,1713385844738,-151.0,0.000198,2]
[322839849,1713385844748,-151.0,0.000198,2]
[322839850,1713385844757,-151.0,0.000198,2]
[322839851,1713385844767,-151.0,0.000198,2]
[322839852,1713385844776,-151.0,0.000198,2]
[322839853,1713385844786,-151.0,0.000198,2]
[322839854,1713385844795,-151.0,0.000198,2]
[322839855,1713385844805,-238.480156,0.000198,2]
[322839856,1713385844814,-238.480156,0.000198,2]
[322839857,1713385844824,-151.0,0.000198,2]
[322839858,1713385844834,-192.63635,0.000198,2]
[322839859,1713385844843,-1139.062646,0.000198,2]
[322839860,1713385844854,-245.638276,0.000198,2]
[322839861,1713385844863,-1139.062646,0.000198,2]
[322839862,1713385844872,-245.638276,0.000198,2]
[322839863,1713385844881,-202.956355,0.000198,2]
[322839864,1713385844891,-202.956355,0.000198,2]
[322839865,1713385844900,-156.698402,0.000198,2]
[322839866,1713385844909,-151.0,0.000198,2]
[322839867,1713385844918,-151.0,0.000198,2]
[322839868,1713385844928,-310.7052,0.000198,2]
[322839869,1713385844938,-151.0,0.000198,2]
[322839870,1713385844948,-151.0,0.000198,2]
[322839871,1713385844956,-310.7052,0.000198,2]
[322839872,1713385844966,-151.888617,0.000198,2]
[322839873,1713385844976,-172.998129,0.000198,2]
[322839874,1713385844985,-151.0,0.000198,2]
[322839875,1713385844994,-441.0,0.000198,2]
[322839876,1713385845002,-162.179472,0.000198,2]
[322839877,1713385845012,-172.998129,0.000198,2]
[322839878,1713385845020,-441.0,0.000198,2]
[322839879,1713385845030,-151.0,0.000198,2]
[322839880,1713385845039,-151.0,0.000198,2]
[322839881,1713385845048,-151.0,0.000198,2]
[322839882,1713385845057,-151.0,0.000198,2]
[322839883,1713385845066,-2458.683349,0.000198,2]
[322839884,1713385845075,-2458.683349,0.000198,2]
[322839885,1713385845085,-170.442812,0.000198,2]
[322839886,1713385845095,-170.442812,0.000198,2]
[322839887,1713385845105,-434.417675,0.000198,2]
[322839888,1713385845114,-156.882597,0.000198,2]
[322839889,1713385845123,-434.417675,0.000198,2]
[322839890,1713385845133,-151.406139,0.000198,2]
[322839891,1713385845143,-151.0,0.000198,2]
[322839892,1713385845152,-151.0,0.000198,2]
[322839893,1713385845162,-151.0,0.000198,2]
[322839894,1713385845171,-151.0,0.000198,2]
[322839895,1713385845180,-151.0,0.000198,2]
[322839896,1713385845189,-154.03933,0.000198,2]
[322839897,1713385845200,-154.03933,0.000198,2]
[322839898,1713385845210,-151.0,0.000198,2]
[322839899,1713385845220,-353.955639,0.000198,2]
[322839900,1713385845232,-353.955639,0.000198,2]
[322839901,1713385845242,-151.0,0.000198,2]
[322839902,1713385845252,-176.442262,0.000198,2]
[322839903,1713385845261,-176.442262,0.000198,2]
[322839904,1713385845271,-151.0,0.000198,2]
[322839905,1713385845280,-151.0,0.000198,2]
[322839906,1713385845289,-151.0,0.000198,2]
[322839907,1713385845298,-271.616672,0.000198,2]
[322839908,1713385845307,-271.616672,0.000198,2]
[322839909,1713385845316,-247.710589,0.000198,2]
[322839910,1713385845326,-247.540033,0.000198,2]
[322839911,1713385845335,-270.585477,0.000198,2]
[322839912,1713385845345,-247.540033,0.000198,2]
[322839913,1713385845354,-270.585477,0.000198,2]
[322839914,1713385845363,-151.0,0.000198,2]
[322839915,1713385845372,-151.0,0.000198,2]
[322839916,1713385845381,-151.0,0.000198,2]
[322839917,1713385845391,-151.0,0.000198,2]
[322839918,1713385845402,-267.682206,0.000198,2]
[322839919,1713385845413,-267.682206,0.000198,2]
[322839920,1713385845422,-151.0,0.000198,2]
[322839921,1713385845432,-151.0,0.000198,2]
[322839922,1713385845442,-151.0,0.000198,2]
[322839923,1713385845452,-151.0,0.000198,2]
[322839924,1713385845462,-151.0,0.000198,2]
[322839925,1713385845472,-151.0,0.000198,2]
[322839926,1713385845484,-151.0,0.000198,2]
[322839927,1713385845494,-151.0,0.000198,2]
[322839928,1713385845503,-167.302969,0.000198,2]
[322839929,1713385845512,-151.0,0.000198,2]
[322839930,1713385845522,-1511.887908,0.000198,2]
[322839931,1713385845531,-1511.887908,0.000198,2]
[322839932,1713385845540,-252.18374,0.000198,2]
[322839933,1713385845550,-87998.35974326,0.000198,2]
[322839963,1713385847092,-482.50838417,0.00017378,2]
[322839964,1713385847102,-207.97770988,0.00019583,2]
[322839965,1713385847112,-996.87797816,0.000198,2]
[322839966,1713385847124,-355.08199107,0.000198,2]
[322839967,1713385847136,-1644.03856495,0.000198,2]
[322839968,1713385847147,-752.475,0.000198,2]
[322839969,1713385847159,-222943.77965804,0.000198,2]
[322839970,1713386880540,189.10394884,0.00015414,2]
[322839971,1713386967570,157.92490406,0.0001541,2]
[322839972,1713387008333,-200.4337694,0.00015505,2]
[322839973,1713387008358,-155.0,0.00015506,2]
[322839974,1713387008384,-262.08510963,0.00015507,2]
[322839975,1713387008408,-1695.08558682,0.00015507,2]
[322839976,1713387008485,-2312.60446585,0.00015507,2]
[322839977,1713387008533,-2312.60446585,0.00015507,2]
[322839978,1713387008605,-2312.60446585,0.00015507,2]
[322839979,1713387008647,-1925.85280021,0.00015507,2]
[322839980,1713387008672,-161.38469832,0.00015508,2]
[322839981,1713387008698,-225.36696732,0.00015508,2]
[322839982,1713387008771,-1575.57285937,0.00015508,2]
[322840011,1713387032135,-412.81701302,0.00015508,2]
[322840012,1713387032145,-2597.05590979,0.00015509,2]
[322840013,1713387032157,-1848.61575999,0.00015509,2]
[322840014,1713387032169,-134.08452306,0.00015509,2]
[322840015,1713387032178,-150.0,0.00015516,2]
[322840016,1713387032188,-537.58418051,0.00015526,2]
[322840017,1713387032198,-490.93,0.00015816,2]
[322840018,1713387032207,-407.2,0.00016208,2]
[322840019,1713387032216,-499.99,0.00016329,2]
[322840020,1713387032226,-1550.0,0.00017,2]
[322840021,1713387032236,-216.52,0.00017,2]
[322840022,1713387032245,-352.25203828,0.00017269,2]
[322840023,1713387032259,-647.74796172,0.00017269,2]
[322840024,1713387032269,-155.0,0.00017376,2]
[322840025,1713387032279,-592.8,0.00017555,2]
[322840026,1713387032288,-195.01,0.00017555,2]
[322840027,1713387032298,-200.0,0.00017555,2]
[322840028,1713387032308,-554.63,0.00017555,2]
[322840029,1713387032318,-17740.6388283,0.00017555,2]
[322840030,1713387032365,-261.36402809,0.00017555,2]
[322840031,1713387032376,-956.33828,0.00017555,2]
[322840032,1713387032389,-919.32000046,0.00017555,2]
[322840033,1713387032400,-630.85,0.00017555,2]
[322840034,1713387032412,-3391.48886315,0.00017555,2]
[322840035,1713387032421,-156.45,0.00017686,2]
[322840036,1713387032431,-156.45,0.00017871,2]
[322840037,1713387032440,-156.45,0.00018055,2]